Cogmind - Beta 13 @@@ ROGUE MODE // 2024.06.04 @ 14:57:45 Player: KaiSkiFox Result: Destroyed by S-10 Pest with Light Assault Rifle Performance ------------- Evolutions (2) 1000 Regions Visited (8) 1600 Robots Destroyed (89) 445 Value Destroyed (4118) 4118 Prototype IDs (27) 540 Alien Tech Used (0) 0 Bonus (3256) 3256 TOTAL SCORE: 10959 Bonus ------- High Alert Combat Kills 278 Follower Combat Kills 328 Entered Garrisons 400 Used RIF Installer 2000 Aligned with FarCom 300 Friendly Fire -50 Cogmind --------- Core Integrity 0/550 Matter 264/300 Energy 306/310 System Corruption 17% Temperature Cool (0) Movement Treading (158) Location -8/Garrison Parts ------- > --- POWER (1) -------- Fission Core > --- PROPULSION (4) --- Improved Treads Improved Treads Armored Treads Advanced Treads > --- UTILITY (4) ------ Advanced Heat Sink High-capacity Storage Unit Hardened Medium Armor Plating Relay Coupler [Sentry] (25) > --- WEAPON (2) ------- Gatling Laser Minigun > --- INVENTORY (20) --- Micro Nuclear Core Advanced Treads High-capacity Storage Unit Improved Signal Interpreter Improved Targeting Computer Improved Targeting Computer Hardened Medium Armor Plating System Shield Flak Cannon Remote Datajack Field Lobotomy Kit (3) Peak State ------------ > --- POWER ------------ Enhanced Nuclear Core > --- PROPULSION ------- Armored Treads Armored Treads Armored Treads Armored Treads > --- UTILITY ---------- High-capacity Storage Unit Matter Filter Hardened Medium Armor Plating Hacking Suite > --- WEAPON ----------- Minigun Field Lobotomy Kit > --- INVENTORY -------- Enhanced Nuclear Core Improved Treads Improved Treads Advanced Treads Advanced Treads Advanced Heat Sink High-capacity Storage Unit Improved Signal Interpreter Improved Targeting Computer Improved Targeting Computer Hardened Medium Armor Plating Hardened Medium Armor Plating Hardened Medium Armor Plating System Shield Gatling Laser Gatling Laser Flak Gun Assault Cannon Flak Cannon Remote Datajack [Rating: 47] Favorites ----------- Power Enhanced Nuclear Core Engine Deuterium Engine Power Core Enhanced Nuclear Core Propulsion Light Treads Treads Light Treads Leg Aluminum Leg Utility High-capacity Storage Unit Device Matter Filter Storage High-capacity Storage Unit Processor Improved Targeting Computer Hackware System Shield Protection Hardened Medium Armor Plating Weapon Assault Rifle Energy Gun Small Laser Energy Cannon Heavy Particle Cannon Ballistic Gun Assault Rifle Ballistic Cannon Assault Cannon Special Weapon Remote Datajack Build | -11 -10 -10 -10 -9 -8 -8 -8 -8 ------- Run | Yrd Mat Min Exi Min Mat Gar Mat Gar Slots Evolved 4 | . . . . . 4 . . . Power . | . . . . . . . . . Propulsion 2 | . . . . . 2 . . . Utility 2 | . . . . . 2 . . . Weapon . | . . . . . . . . . Parts Attached 111 | 6 8 1 . 2 23 19 33 19 Power 13 | 1 1 1 . . 2 3 3 2 Engine 5 | 1 1 . . . 1 2 . . Core 8 | . . 1 . . 1 1 3 2 Reactor . | . . . . . . . . . Propulsion 29 | 2 2 . . 2 6 4 10 3 Treads 25 | 2 . . . . 6 4 10 3 Leg 4 | . 2 . . 2 . . . . Wheel . | . . . . . . . . . Hover . | . . . . . . . . . Flight . | . . . . . . . . . Utility 26 | 1 4 . . . 7 2 7 5 Device 4 | . . . . . 1 . 2 1 Storage 3 | 1 2 . . . . . . . Processor 1 | . . . . . 1 . . . Hackware 8 | . . . . . 2 1 2 3 Protection 10 | . 2 . . . 3 1 3 1 Artifact . | . . . . . . . . . Weapon 43 | 2 1 . . . 8 10 13 9 Energy Gun 8 | 1 . . . . 2 . 4 1 Energy Cannon 1 | . . . . . . 1 . . Ballistic Gun 20 | 1 1 . . . 5 6 4 3 Ballistic Cannon 8 | . . . . . . . 4 4 Launcher . | . . . . . . . . . Special Weapon 6 | . . . . . 1 3 1 1 Impact Weapon . | . . . . . . . . . Slashing Weapon . | . . . . . . . . . Piercing Weapon . | . . . . . . . . . Special Melee Weapon . | . . . . . . . . . Unidentified Prototypes 4 | . . . . . 1 . 3 . Parts Lost 18 | . 2 . . . 3 3 3 7 Power 3 | . 1 . . . 1 1 . . Propulsion 5 | . 1 . . . . 1 . 3 Utility 7 | . . . . . 2 1 2 2 Weapon 3 | . . . . . . . 1 2 Highest Loss Streak 5 | . 1 . . . 2 1 2 5 To Critical Strikes 2 | . . . . . . . . 2 Average Slot Usage (%) 95 | . 99 100 100 100 89 96 97 97 Engine 3 | . 14 5 . . 3 6 . . Core 6 | . . 8 14 14 5 2 8 9 Treads 25 | . 5 . . . 27 34 35 35 Leg 7 | . 22 28 28 28 4 . . . Device 2 | . . . . . . . 4 9 Storage 10 | . 14 14 14 14 9 9 9 9 Processor 2 | . . . . . 2 9 2 . Hackware 5 | . . . . . 2 13 8 7 Protection 11 | . 13 14 14 14 15 3 8 8 Energy Gun 6 | . 14 14 14 14 5 . 3 7 Ballistic Gun 11 | . 13 14 14 14 12 16 9 5 Ballistic Cannon 2 | . . . . . . . 5 5 Naked Turns . | . . . . . . . . . Heaviest Build 71 | 13 51 53 53 53 71 68 71 68 Greatest Support 88 | 40 40 20 20 20 85 85 82 88 Greatest Overweight (x) 23 | . 2 2 2 2 3 1 23 . Average Overweight (x) . | . 1 2 2 2 . . . . Largest Inventory Capacity 20 | 8 20 20 20 20 20 20 20 20 Average Capacity 19 | 7 15 20 20 20 20 20 20 20 Most Carried 20 | 4 10 12 13 14 20 20 20 20 Average Carried 15 | 2 7 11 12 12 15 19 18 17 Final Capacity 20 | 8 20 20 20 20 20 20 20 20 Final Carried 20 | 4 10 12 13 13 20 20 19 11 Class Distribution -------------------- 69% | Mutant 24% | Scavenger-Mutant 3% | Commander-Mutant 3% | Hacker-Mutant Dominant Class ---------------- Mutant | -10/Materials Mutant | -10/Mines Mutant | -10/Exiles Mutant | -9/Mines Mutant | -8/Materials Scavenger-Mutant | -8/Garrison Mutant | -8/Materials Mutant | -8/Garrison Resources | -11 -10 -10 -10 -9 -8 -8 -8 -8 ----------- Run | Yrd Mat Min Exi Min Mat Gar Mat Gar Matter Collected 3326 | 212 253 78 . 51 467 592 1011 662 Remotely . | . . . . . . . . . Salvage Created 3437 | . 538 78 . 90 725 564 798 644 Parts 186 | . 26 4 . 7 32 46 38 33 Haulers Intercepted 8 | . 2 . . . 3 . 3 . Recyclers Shooed 2 | . . . . 1 1 . . . Parts Field Recycled . | . . . . . . . . . Retrieved Matter . | . . . . . . . . . Parts Self-Destructed . | . . . . . . . . . Prevented . | . . . . . . . . . Kills | -11 -10 -10 -10 -9 -8 -8 -8 -8 ------- Run | Yrd Mat Min Exi Min Mat Gar Mat Gar Combat Hostiles Destroyed 70 | . 8 2 . 2 9 14 14 21 Guns 63 | . 8 2 . 2 9 14 13 15 Cannons 7 | . . . . . . . 1 6 Classes Destroyed 11 | . 6 . . . 3 2 . . Worker 1 | . 1 . . . . . . . Builder 2 | . 1 . . . 1 . . . Hauler 8 | . 2 . . . 3 . 3 . Recycler 2 | . 1 . . . 1 . . . Operator 3 | . 1 . . . 1 . 1 . Watcher 3 | . . . . . 2 . 1 . Swarmer 11 | . . . . . . 3 . 8 Grunt 31 | . 8 2 . 2 4 . 6 9 Sentry 15 | . . . . . 2 4 7 2 Hunter 5 | . . . . . 3 1 1 . Programmer 8 | . . . . . . 6 . 2 Best Kill Streak 3 | . 2 1 . 2 3 3 2 3 Combat Bots Only 3 | . 2 1 . 2 2 3 2 3 Max Kills in Single Turn 3 | . 2 1 . 1 2 2 1 3 Gunslinging 1 | . . . . . . . . 1 Exploded . | . . . . . . . . . Melee . | . . . . . . . . . Uniques/NPCs Destroyed . | . . . . . . . . . Combat | -11 -10 -10 -10 -9 -8 -8 -8 -8 -------- Run | Yrd Mat Min Exi Min Mat Gar Mat Gar Hostile Shots Fired 485 | . 77 14 . 11 65 88 87 143 Missed 124 | . 22 7 . 2 15 20 24 34 Damage Taken 5682 | . 854 99 . 136 925 988 983 1697 Core 760 | . 113 30 . 62 132 153 86 184 Absorbed by Shields . | . . . . . . . . . Regen/Repaired (Parts) 380 | . 173 . . . 175 . 32 . Core Remaining (%) 59 | 100 . . . 18 . . . . Volleys Fired 346 | . 61 9 . 8 69 58 49 92 Largest 2 | . 2 2 . 2 2 2 2 2 Hottest 124 | . 60 60 . 60 100 100 108 124 Shots Fired 668 | . 122 18 . 16 130 110 94 178 Gun 599 | . 122 18 . 16 129 105 78 131 Cannon 64 | . . . . . . 3 15 46 Launcher . | . . . . . . . . . Special 5 | . . . . . 1 2 1 1 Kinetic 438 | . 61 9 . 8 79 105 71 105 Thermal 225 | . 61 9 . 8 50 3 22 72 Explosive . | . . . . . . . . . Electromagnetic . | . . . . . . . . . Robot Hit Streak 21 | . 14 7 . 8 7 10 21 11 Robot Miss Streak 9 | . 8 9 . 1 8 5 5 8 Penetration Max 1 | . . . . . . 1 . . Secondary Targets 5 | . . . . 1 . . 1 3 Max Gunslinging Chain 1 | . . . . 1 . . 1 1 Shots Hit Robots 364 | . 76 13 . 13 70 61 70 61 Core Hits 214 | . 28 5 . 6 30 27 69 49 Critical Kills 1 | . . . . . . 1 . . Critical Parts Destroyed 3 | . 1 . . . . 2 . . Critical Strikes 9 | . 1 . . . 1 3 4 . Burn 5 | . . . . . 1 . 4 . Destroy 4 | . 1 . . . . 3 . . Melee Attacks . | . . . . . . . . . Impact . | . . . . . . . . . Slashing . | . . . . . . . . . Piercing . | . . . . . . . . . Sneak Attacks . | . . . . . . . . . Combat Hostiles . | . . . . . . . . . Follow-up Attacks . | . . . . . . . . . Damage Inflicted 6823 | . 1025 149 . 147 1297 1477 1472 1256 Guns 6087 | . 896 149 . 147 1297 1427 1255 916 Cannons 607 | . . . . . . 50 217 340 Explosions 129 | . 129 . . . . . . . Melee . | . . . . . . . . . Ramming . | . . . . . . . . . Kinetic 4488 | . 462 73 . 74 632 1427 1088 732 Thermal 2206 | . 434 76 . 73 665 50 384 524 Explosive 129 | . 129 . . . . . . . Electromagnetic . | . . . . . . . . . Impact . | . . . . . . . . . Slashing . | . . . . . . . . . Piercing . | . . . . . . . . . Highest Corruption 17 | . . . . . . 14 14 17 Average Corruption 13 | . . . . . . 9 14 14 Corruption Purged . | . . . . . . . . . Corruption Blocked . | . . . . . . . . . Effects 268 | . . . . . . 41 145 82 Message Errors 70 | . . . . . . 12 34 24 Matter Fused 66 | . . . . . . 12 37 17 Heat Flow Errors 19 | . . . . . . 3 11 5 Energy Discharges 48 | . . . . . . 4 28 16 Parts Rejected 3 | . . . . . . . 3 . Parts Fused 1 | . . . . . . . . 1 Data Loss (minor) 34 | . . . . . . 4 21 9 Data Loss (major) 11 | . . . . . . 2 5 4 Misfires 6 | . . . . . . 2 4 . Alerts 2 | . . . . . . . 1 1 Weapon Failures 8 | . . . . . . 2 1 5 Overload Shots . | . . . . . . . . . Overflow Damage 86 | . 79 . . . . . 7 . Projectiles 7 | . . . . . . . 7 . Explosions 79 | . 79 . . . . . . . Melee . | . . . . . . . . . Knockbacks 8 | . . . . . . . 5 3 Impact . | . . . . . . . . . Kinetic 7 | . . . . . . . 5 2 Secondary 1 | . . . . . . . . 1 Self-Inflicted Damage 227 | . 227 . . . . . . . Shots 3 | . 3 . . . . . . . Rammed . | . . . . . . . . . Targets Rammed . | . . . . . . . . . Kicked . | . . . . . . . . . Crushed . | . . . . . . . . . Highest Temperature 612 | . 212 189 . 243 609 241 408 612 Average Temperature 107 | . 50 90 . 111 114 54 100 160 Received Heat Transfer 1770 | . 354 60 . 96 297 54 486 423 Effects 27 | . . . . . 9 . 3 15 Shutdowns 5 | . . . . . . . 1 4 Energy Bleed 5 | . . . . . 2 . . 3 Interference 6 | . . . . . 1 . 2 3 Short Circuit 3 | . . . . . 2 . . 1 Damage (minor) 2 | . . . . . 1 . . 1 Damage (major) 5 | . . . . . 3 . . 2 Damage (core) 1 | . . . . . . . . 1 Siege Activations . | . . . . . . . . . Robots Corrupted . | . . . . . . . . . Combat Hostiles . | . . . . . . . . . Parts Fried . | . . . . . . . . . Impact Corruptions . | . . . . . . . . . Robots Melted . | . . . . . . . . . Combat Hostiles . | . . . . . . . . . Parts Melted 5 | . 1 . . 1 1 . 2 . Heat Transferred 4818 | . 1000 175 . 175 1217 74 1027 1150 Parts Sabotaged . | . . . . . . . . . Parts Stolen . | . . . . . . . . . Parts Stripped . | . . . . . . . . . Power Chain Reactions . | . . . . . . . . . Alert | -11 -10 -10 -10 -9 -8 -8 -8 -8 ------- Run | Yrd Mat Min Exi Min Mat Gar Mat Gar Peak Influence 1290 | . 273 50 . 56 216 731 584 1290 Initial 356 | . . . . . . 102 356 73 Average 178 | . 49 33 . 33 76 390 119 485 Maximum Alert Level 4 | . 1 . . . 1 3 2 4 Low Security (%) 71 | 100 96 100 . 100 99 12 77 16 Level 1 13 | . 3 . . . . 46 8 38 Level 2 9 | . . . . . . 34 14 16 Level 3 4 | . . . . . . 6 . 21 Level 4 1 | . . . . . . . . 7 Level 5 . | . . . . . . . . . High Security . | . . . . . . . . . Max Security . | . . . . . . . . . Squads Dispatched 11 | . 3 . . . 2 . 6 . Investigation 4 | . 2 . . . . . 2 . Extermination . | . . . . . . . . . Reinforcement 4 | . 1 . . . 1 . 2 . Assault . | . . . . . . . . . Garrison 3 | . . . . . 1 . 2 . Intercept . | . . . . . . . . . Searches Triggered . | . . . . . . . . . Construction Impeded . | . . . . . . . . . Haulers Reinforced . | . . . . . . . . . Active Scanning Responses . | . . . . . . . . . Cargo Convoy Interrupts . | . . . . . . . . . Stealth | -11 -10 -10 -10 -9 -8 -8 -8 -8 --------- Run | Yrd Mat Min Exi Min Mat Gar Mat Gar Distress Signals 6 | . . 1 . . 2 . 3 . Communications Jammed . | . . . . . . . . . Distress Signals . | . . . . . . . . . Times Spotted 134 | . 25 2 . 2 31 15 24 35 Peak Tracking Total 7 | . 4 2 . 2 3 7 5 4 Tactical Retreats 5 | . . . . . 1 1 . 3 Traps | -11 -10 -10 -10 -9 -8 -8 -8 -8 ------- Run | Yrd Mat Min Exi Min Mat Gar Mat Gar Traps Triggered 4 | . 1 . . . 1 . 2 . Indirectly . | . . . . . . . . . Trap Hack Attempts . | . . . . . . . . . Triggered . | . . . . . . . . . Disarmed . | . . . . . . . . . Reprogrammed . | . . . . . . . . . Reused . | . . . . . . . . . Traps Extracted . | . . . . . . . . . Installed . | . . . . . . . . . Triggered . | . . . . . . . . . Machines | -11 -10 -10 -10 -9 -8 -8 -8 -8 ---------- Run | Yrd Mat Min Exi Min Mat Gar Mat Gar Machines Disabled 15 | . 5 . . . 1 2 1 6 Max in Single Turn 2 | . 2 . . . 1 1 1 1 Garrison Relay 5 | . . . . . . 2 . 3 Machines Repaired . | . . . . . . . . . Machines Dismantled . | . . . . . . . . . Machines Sabotaged . | . . . . . . . . . Overloaded Fab Kills . | . . . . . . . . . Hacking | -11 -10 -10 -10 -9 -8 -8 -8 -8 --------- Run | Yrd Mat Min Exi Min Mat Gar Mat Gar Machines Accessed 32 | . 5 . 1 1 6 2 13 4 Terminals 25 | . 4 . . 1 4 2 10 4 Fabricators . | . . . . . . . . . Repair Stations 3 | . 1 . . . 1 . 1 . Recycling Units . | . . . . . . . . . Scanalyzers 1 | . . . . . . . 1 . Garrison Access 2 | . . . . . 1 . 1 . Total Hacks 100 | . 13 . 1 3 20 4 54 5 Successful 36 | . 6 . 1 1 7 2 17 2 Failed 64 | . 7 . . 2 13 2 37 3 Catastrophic 17 | . 2 . . 1 1 . 11 2 Database Lockouts . | . . . . . . . . . Manual 48 | . 7 . 1 3 12 . 25 . Terminals 80 | . 10 . . 3 13 4 45 5 Fabricators . | . . . . . . . . . Repair Stations 9 | . 3 . . . 4 . 2 . Recycling Units . | . . . . . . . . . Scanalyzers 5 | . . . . . . . 5 . Garrison Access 5 | . . . . . 3 . 2 . Terminal Hacks 23 | . 4 . 1 1 4 2 9 2 Record 6 | . . . . . 1 . 5 . Open Door 2 | . . . . . . 1 . 1 Level Access Points 1 | . . . . . 1 . . . Terminal Index 4 | . 1 . . 1 1 . 1 . Alert Level 1 | . 1 . . . . . . . Unreport Threat 5 | . 1 . . . 1 . 3 . Hauler Manifests 1 | . 1 . . . . . . . Garrison Registry 2 | . . . . . . 1 . 1 Derelict Proto ID Bank 1 | . . . 1 . . . . . Fabricator Hacks . | . . . . . . . . . Repair Station Hacks 6 | . 2 . . . 2 . 2 . Scan Component 3 | . 1 . . . 1 . 1 . Repair 3 | . 1 . . . 1 . 1 . Recycling Unit Hacks . | . . . . . . . . . Scanalyzer 4 | . . . . . . . 4 . Insert Component 2 | . . . . . . . 2 . Analyze 2 | . . . . . . . 2 . Garrison Access Hacks 3 | . . . . . 1 . 2 . Unlock Access 2 | . . . . . 1 . 1 . Coupler Status 1 | . . . . . . . 1 . Unauthorized Hacks . | . . . . . . . . . Terminals . | . . . . . . . . . Fabricators . | . . . . . . . . . Repair Stations . | . . . . . . . . . Recycling Units . | . . . . . . . . . Scanalyzers . | . . . . . . . . . Garrison Access . | . . . . . . . . . Data Cores Recovered . | . . . . . . . . . Used . | . . . . . . . . . Hacking Detections 29 | . 5 . . 1 6 1 12 4 Full Trace Events 1 | . 1 . . . . . . . Feedback Events . | . . . . . . . . . Feedback Blocked . | . . . . . . . . . Robot Schematics Acquired . | . . . . . . . . . Robots Built . | . . . . . . . . . Authchips . | . . . . . . . . . Time . | . . . . . . . . . Total Robot Build Rating . | . . . . . . . . . Part Schematics Acquired 2 | . . . . . . . 2 . Parts Built . | . . . . . . . . . Authchips . | . . . . . . . . . Time . | . . . . . . . . . Total Part Build Rating . | . . . . . . . . . Parts Repaired 3 | . 1 . . . 1 . 1 . Time 118 | . 32 . . . 16 . 70 . Parts Recycled . | . . . . . . . . . Recycled Matter . | . . . . . . . . . Retrieved Matter . | . . . . . . . . . Retrieved Components . | . . . . . . . . . Parts Scanalyzed 2 | . . . . . . . 2 . Part Schematics Acquired 2 | . . . . . . . 2 . Parts Damaged . | . . . . . . . . . Bothacking | -11 -10 -10 -10 -9 -8 -8 -8 -8 ------------ Run | Yrd Mat Min Exi Min Mat Gar Mat Gar Used RIF Installer 4 | . . . . . . 2 . 2 Code Merge 1 | . . . . . . . . 1 Signal Jammer 1 | . . . . . . . . 1 Program Shield 1 | . . . . . . 1 . . Robots Hacked 3 | . . . . . . 2 . 1 Non-combat . | . . . . . . . . . Combat 3 | . . . . . . 2 . 1 Robot Hacks Applied 3 | . . . . . . 2 . 1 formatsys_high 3 | . . . . . . 2 . 1 Relay Couplers Released 20 | . . . . . . 8 . 12 Machine Destruction 20 | . . . . . . 8 . 12 Attached 4 | . . . . . . 1 . 3 Merged Code Value 6 | . . . . . . . . 6 Fabnet Peak Effective % . | . . . . . . . . . Robots Rewired 7 | . . . . . . . . 7 Allies Hacked 3 | . . . . . . . . 3 Hacks Repelled 1 | . . . . . . 1 . . Allies | -11 -10 -10 -10 -9 -8 -8 -8 -8 -------- Run | Yrd Mat Min Exi Min Mat Gar Mat Gar Total Allies 14 | . . . . 2 1 3 . 8 Largest Group 4 | . . . . 2 2 2 2 4 Highest-Rated Group 126 | . . . . 44 44 35 35 126 Highest-Rated Ally 39 | . . . . 31 31 20 20 39 Total Orders . | . . . . . . . . . Ally Attacks 95 | . . . . . 23 2 21 49 Total Damage 1909 | . . . . . 370 18 514 1007 Kills 20 | . . . . . 3 . 5 12 Allies Corrupted 1 | . . . . . . 1 . . Allies Melted . | . . . . . . . . . Field Lobotomies 1 | . . . . . 1 . . . Intel | -11 -10 -10 -10 -9 -8 -8 -8 -8 ------- Run | Yrd Mat Min Exi Min Mat Gar Mat Gar Robot Analysis Total . | . . . . . . . . . Derelict Logs Recovered 1 | . . . . 1 . . . . Drone Launches . | . . . . . . . . . Drone Recoveries . | . . . . . . . . . Exploration | -11 -10 -10 -10 -9 -8 -8 -8 -8 ------------- Run | Yrd Mat Min Exi Min Mat Gar Mat Gar Turns Passed 13734 | 79 1656 244 737 645 3523 1286 3441 2123 Spaces Moved 5833 | 43 670 81 284 237 1339 653 1608 918 Core 4 | 3 . . . . . . 1 . Treads 4564 | 40 156 . . . 1190 653 1607 918 Legs 1265 | . 514 81 284 237 149 . . . Wheels . | . . . . . . . . . Hover . | . . . . . . . . . Flight . | . . . . . . . . . Fastest Speed 50 | 50 160 260 260 260 155 155 156 158 Average Speed 182 | 152 200 260 260 260 186 158 161 168 Slowest Speed 1200 | 160 260 260 260 260 330 235 1200 170 Overloaded Moves . | . . . . . . . . . Propulsion Burnouts . | . . . . . . . . . Robots Hopped . | . . . . . . . . . Cave-ins Triggered . | . . . . . . . . . Exploration Rate (%) 52 | 5 63 12 64 52 54 70 80 75 Regions Visited 8 Branch Regions 3 Pre-discovered Areas . | . . . . . . . . . Known Exits Taken 2 | . . . . . 1 . 1 . Unknown Exits Taken 5 | 1 1 1 1 1 . . . . Scrap Searched 3 | . . . . 3 . . . . Spaces Dug . | . . . . . . . . . Terrain Destroyed 43 | . 41 . . . . 1 1 . Melee . | . . . . . . . . . Projectile 2 | . . . . . . 1 1 . AOE 41 | . 41 . . . . . . . Terrain Rammed . | . . . . . . . . . Walls Destroyed . | . . . . . . . . . Machines Disabled . | . . . . . . . . . Actions | -11 -10 -10 -10 -9 -8 -8 -8 -8 --------- Run | Yrd Mat Min Exi Min Mat Gar Mat Gar Total 8267 | 54 862 98 284 251 2254 806 2356 1302 Wait 1740 | 2 109 5 . . 782 47 616 179 Move 5826 | 42 669 80 283 236 1339 651 1608 918 Hop . | . . . . . . . . . Pick Up 85 | 4 11 2 1 2 24 12 23 6 Fast Attach 29 | 6 3 . . . 5 5 10 . Attach 41 | . 3 . . . 13 2 12 11 Detach 8 | . . . . . 2 1 2 3 Swap 41 | . 2 1 . 2 5 12 11 8 Drop 70 | . 4 1 . 3 15 18 25 4 Fire 346 | . 61 9 . 8 69 58 49 92 Melee . | . . . . . . . . . Ram . | . . . . . . . . . Kick . | . . . . . . . . . Crush . | . . . . . . . . . Escape Stasis . | . . . . . . . . . Rewire 81 | . . . . . . . . 81 Trap . | . . . . . . . . . Miscellaneous . | . . . . . . . . . Route ------- -11/Scrapyard -10/Materials (discovered 3 exits: [*Mat x2] / [*Min]) -10/Mines -10/Exiles (discovered 2 exits: *Min x2) -9/Mines -8/Materials (discovered 4 exits: *Fac x3 / Gar) -8/Garrison (discovered 3 exits: *Mat x3) -8/Materials (discovered 3 exits: *Fac x2 / Gar) -8/Garrison (discovered 4 exits: *Fac x3 / [*Mat]) History --------- Turn | Location | Event 9 | -11/Scrapyard | Discovered new exit (range 15) 80 | -11/Scrapyard | Entered Materials 315 | -10/Materials | Build established: Mutant 828 | -10/Materials | Repaired Hrd. Light Armor Plating 848 | -10/Materials | Discovered new exit (range 15) 854 | -10/Materials | Discovered new exit (range 14) 983 | -10/Materials | Discovered new exit (range 15) 1736 | -10/Materials | Entered Mines 1769 | -10/Mines | Met a Derelict bent on vengeance 1819 | -10/Mines | Core integrity fell below 50% 1893 | -10/Mines | Assembled infested the area 1962 | -10/Mines | Deemed a non-threat by the Exiles lab entrance 1965 | -10/Mines | Discovered new exit (range 5) 1980 | -10/Mines | Entered Exiles 2019 | -10/Exiles | Discovered new exit (range 14) 2100 | -10/Exiles | Met 8R-AWN 2136 | -10/Exiles | Met EX-HEX 2235 | -10/Exiles | Met EX-DEC 2311 | -10/Exiles | Met EX-BIN 2347 | -10/Exiles | Aligned with FarCom system 2350 | -10/Exiles | Given EX-Vault access code 2443 | -10/Exiles | Opened EX-Vault 2467 | -10/Exiles | Found Field Lobotomy Kit 2527 | -10/Exiles | Warned to stay clear of 0b10 Research branches 2689 | -10/Exiles | Discovered new exit (range 14) 2717 | -10/Exiles | Left Exiles lab with Field Lobotomy Kit 2717 | -10/Exiles | Entered Mines 2730 | -9/Mines | Core integrity fell below 20% 3349 | -9/Mines | Discovered new exit (range 5) 3362 | -9/Mines | Entered Materials 3362 | -8/Materials | Accompanied by 2 allies 3362 | -8/Materials | Evolved 4 slots: Propulsion x2, Utility x2 3367 | -8/Materials | Led the pair of lost Derelicts to an unsafe place 3789 | -8/Materials | Assimilated Y-45 Defender with FLK Orb 4013 | -8/Materials | Repaired Hrd. Light Armor Plating 4517 | -8/Materials | Identified exit to Factory 4952 | -8/Materials | Build established: Scavenger-Mutant 6255 | -8/Materials | Build established: Mutant 6546 | -8/Materials | Garrison activated, responded to threat 6885 | -8/Materials | Identified exit to Garrison 6885 | -8/Materials | Entered Garrison 6929 | -8/Garrison | Triggered checkpoint 6960 | -8/Garrison | Discovered new exit (range 31) 6960 | -8/Garrison | Discovered new exit (range 56) 6960 | -8/Garrison | Discovered new exit (range 51) 7042 | -8/Garrison | Garrison Relay disabled 7205 | -8/Garrison | Triggered checkpoint 7269 | -8/Garrison | Triggered checkpoint 7412 | -8/Garrison | Installed Relay Interface Framework 7514 | -8/Garrison | Build established: Scavenger-Mutant 7642 | -8/Garrison | System corruption reached 10% 7707 | -8/Garrison | Expanded RIF knowledge: Program Shield 7841 | -8/Garrison | Triggered checkpoint 7854 | -8/Garrison | Core integrity fell below 50% 7985 | -8/Garrison | Triggered checkpoint 8014 | -8/Garrison | Rescued a captive Derelict 8065 | -8/Garrison | Garrison Relay disabled 8171 | -8/Garrison | Entered Materials 8171 | -8/Materials | Accompanied by 2 allies 8343 | -8/Materials | Garrison activated, responded to threat 8666 | -8/Materials | Garrison activated, responded to threat 8753 | -8/Materials | Met 7R-MNS 8827 | -8/Materials | Discovered exit to Factory (range 16) 9331 | -8/Materials | Build established: Hacker-Mutant 9786 | -8/Materials | Build established: Mutant 10925 | -8/Materials | Discovered exit to Factory (range 12) 11260 | -8/Materials | Repaired Enh. Nuclear Core 11612 | -8/Materials | Identified exit to Garrison 11612 | -8/Materials | Entered Garrison 11726 | -8/Garrison | Triggered checkpoint 11786 | -8/Garrison | Garrison Relay disabled 11950 | -8/Garrison | Triggered checkpoint 12001 | -8/Garrison | Discovered new exit (range 6) 12076 | -8/Garrison | Lost 3 allies 12134 | -8/Garrison | Triggered checkpoint 12162 | -8/Garrison | Core integrity fell below 20% 12217 | -8/Garrison | Discovered exit to Factory (range 12) 12556 | -8/Garrison | Discovered exit to Factory (range 83) 12556 | -8/Garrison | Discovered exit to Factory (range 16) 12556 | -8/Garrison | Discovered exit to Factory (range 72) 12556 | -8/Garrison | Discovered new exit (range 65) 12762 | -8/Garrison | Triggered checkpoint 12780 | -8/Garrison | Garrison Relay disabled 12808 | -8/Garrison | Build established: Commander-Mutant 12916 | -8/Garrison | Triggered checkpoint 13070 | -8/Garrison | Triggered checkpoint 13151 | -8/Garrison | Expanded RIF knowledge: Signal Jamming 13232 | -8/Garrison | Triggered checkpoint 13244 | -8/Garrison | Build established: Mutant 13311 | -8/Garrison | P-60 Hacker assimilated allied J0-MH4(h) 13358 | -8/Garrison | Lost 5 parts (2n2u1w) 13391 | -8/Garrison | Expanded RIF knowledge: Code Merge 13461 | -8/Garrison | Garrison Relay disabled 13566 | -8/Garrison | Triggered checkpoint 13735 | -8/Garrison | Destroyed by S-10 Pest with Light Assault Rifle Last Messages --------------- 13580_ Arm. Treads destroyed. 13583_ G-47 Trooper destroyed. 13583_ Switching to secondary target: G-47 Trooper. 13583_ G-47 Trooper destroyed. 13588_ Acquired 57 matter. 13589_ Acquired 9 matter. 13591_ M5XN>#AY,Y>BGC:%XVF= 13613_ Z64PVHBAORF38#PJ= 13728_ S-10 Pest destroyed. 13731_ System corrupted: Gatling Laser failed to cycle. 13732_ =7UV6 YAZI LT3Y8OIGRY8OAP3 13734_ S-10 Pest destroyed. 13734_ Switching to secondary target: S-10 Pest. Map ----- +----------------------------------------------------+ | ########### #?#* =#??# #"#?????????????????? | | #?????????# ### #### ###?????????????????? | | ##????????# #???????????????????? | | #????????######+#######???????????????????? | | ############### #?????????????????????????? | | + #?????????????????????????? | | #################?????????????????????????? | | ###???????????????????????????????????????? | | #???????????????????????????????????????? | | #???????????????????????????????????????? | | #???????????????????????????????????????? | | #???????????????????????????????????????? | | ###????????????????????????######?????????? | | ############################ ##?????????? | | + #?????????? | | =!= #########+####### #?????????? | | /%^^^#?????### ###??# # #?????????? | | ####+####=^^#?????#"# "s#??######?????????? | | #??# #??#!/*#?????#" "s#?????????????????? | | #??# #### ^=#?????#" "s####??????????????? | | #??# =^^#?????#" "s+ #??????????????? | | #??######! #?????#"# " ##s#??????????????? | | #???????#%^ #?????### #### #####??????????? | | #########! ######### ####+##!!##?????????? | | + s ##^ !#?????????? | | + @% !#?????????? | | #### #### ###############;##!!##?????????? | | ???# #??# #?????????????# #####??????????? | | ???# #??# #?????????????# #??????????????? | | ???# #??# #????########## #??????????????? | | ???# #??# #????#"""# #"#??????????????? | | ???# #??# #????#" #??????????????? | | #### #??# #????#" #??????????????? | | #"## #??# #????#" #??????????????? | | #"## #??# #????#" #??????????????? | | ""## ##?# #????#" #??????????????? | | " #?# #????#""# #??????????????? | | #?# #????#### #??????????????? | | " ### ######### #??????????????? | | """ + + s + #??????????????? | | " ### ####### ## ###??????????????? | | #?# #?????# #######????????????????? | | #?# #????## #??????????????????????? | | #?# #????#"^#??????????????????????? | | # ## ##?# #????#T #??????????????????????? | | #### #??# ###??#""#??????????????????????? | | ???# #### #??####??????????????????????? | | ???# + < #????????????????????????????? | | ???###### #????????????????????????????? | | ????????#######????????????????????????????? | +----------------------------------------------------+ Best States ------------- Heat Dissipation 50 Energy Generation 18 Energy Capacity 310 Matter Stores 300 Matter Capacity 300 Sight Range 16 Terrain Scan Density 10 Armor Coverage 375 Evasion (%) 40 Targeting Accuracy 6 Recoil Reduction 4 Matter Filtering 30 Offensive Hacking 10 Defensive Hacking 10 Relay Coupler Types 1 Relay Coupler Value 31 Item Schematics ----------------- System Shield | -8/Materials | Scanalyzed Hacking Suite | -8/Materials | Scanalyzed Robot Schematics ------------------ None Fabricated ------------ Nothing Alien Tech Used ----------------- None Achievements -------------- More Dakka Please Challenges ------------ None Game ------ Seed PrecisionRecoilSpecial Manual? 0 Play Time 01:25:29 Cumulative 9.6 hours Start 2024.06.04 @ 13:24:53 End 2024.06.04 @ 14:57:45 Sessions 1 Manual Loads 0 Difficulty Rogue Special Mode None Game No. 12 Rogue 2 Adventurer 10 Explorer 0 Win Type - Total 0 Types 0/0/0/0/0/0/0/0/0 Lore% 19 Gallery% 23 Achievement% 20 Wizard Run 0 Options --------- Layout 0 ASCII 0 Keyboard 0 Movement Arrows Keybinds 0 Fullscreen 1 Font 24/Smallcaps Map View 76x50 Zoom Use 0% Tactical HUD 1 Map Filters NONE Filters NONE Steam 1 RUN: 7a5e45a5-3bfe-403f-a2fc-14cf0fba8b08